[Event "Eurasia Open Cup 2018"]
[Site "Jekaterienburg"]
[Date "2018.08.10"]
[Round "9"]
[White "Tsydypov, Zhamsaran"]
[Black "Patrushev, Konstantin"]
[Result "1-0"]
[ECO "C42"]
[WhiteElo "2514"]
[BlackElo "2138"]
[Annotator "ChessBase"]
[PlyCount "61"]
[EventDate "2018.08.01"]
[EventType "swiss"]
[EventCountry "RUS"]
[SourceTitle "playchess.com"]
[Source "ChessBase"]
[SourceQuality "1"]
[TimeControl "5400+30"]

1. e4 {[%emt 0:00:00]} e5 {[%emt 0:03:37]} 2. Nf3 {[%emt 0:02:48]} Nf6 {[%emt 0:00:51]} 3. Nxe5 {[%emt 0:00:19]} d6 {[%emt 0:00:05]} 4. Nf3 {[%emt 0:00:05]} Nxe4 {[%emt 0:00:04]} 5. d4 {[%emt 0:00:05]} d5 {[%emt 0:00:38]} 6. Bd3 {[%emt 0:00:07]} Nc6 {[%emt 0:00:06]} 7. O-O {[%emt 0:01:02]} Be7 {[%emt 0:00:06]} 8. Re1 {[%emt 0:00:49]} Bf5 {[%emt 0:03:21]} 9. a3 {[%emt 0:00:41]} Nd6 {[%emt 0:02:44]} 10. Nc3 {[%emt 0:00:38]} Be6 {[%emt 0:04:16]} 11. h3 {[%emt 0:06:45]} O-O {[%emt 0:00:42]} 12. Ne2 {[%emt 0:02:23]} Bf5 {[%emt 0:03:30]} 13. Nf4 {[%emt 0:00:10]} Be4 {[%emt 0:01:39]} 14. c3 {[%emt 0:01:43]} Na5 {[%emt 0:01:36]} 15. Ne5 {[%emt 0:02:00]} Bxd3 {[%emt 0:02:39]} 16. Nfxd3 {[%emt 0:03:15]} Nac4 {[%emt 0:04:24]} 17. Nc5 {[%emt 0:01:02]} Bg5 {[%emt 0:03:56]} 18. Nxc4 {[%emt 0:10:41]} dxc4 {[%emt 0:00:56]} 19. Bxg5 {[%emt 0:00:40]} Qxg5 {[%emt 0:00:01]} 20. Qf3 {[%emt 0:00:12]} c6 {[%emt 0:06:49]} 21. Re5 {[%emt 0:00:51]} Qd8 {[%emt 0:00:08]} 22. Rae1 {[%emt 0:00:07]} Rc8 {[%emt 0:00:06]} 23. Qf4 {[%emt 0:07:59]} Rc7 {[%emt 0:03:07]} 24. R1e3 {[%emt 0:03:29]} b6 {[%emt 0:01:51]} 25. Na6 {[%emt 0:00:14]} Rd7 {[%emt 0:00:48]} 26. Nb4 {[%emt 0:00:32]} Qc7 {[%emt 0:00:54]} 27. Qf3 {[%emt 0:03:45]} f6 {[%emt 0:01:53]} 28. Re6 {[%emt 0:00:34]} Rc8 {[%emt 0:00:08]} 29. d5 {[%emt 0:00:11]} c5 {[%emt 0:00:37]} 30. Nc6 {[%emt 0:00:04]} Rf8 {[%emt 0:00:32]} 31. Ne7+ {[%emt 0:02:58]} 1-0

[Event "Eurasia Open Cup 2018"]
[Site "Jekaterienburg"]
[Date "2018.08.10"]
[Round "9"]
[White "Popov, Mikhail"]
[Black "Saunina, Ludmila"]
[Result "1-0"]
[ECO "A13"]
[WhiteElo "2401"]
[BlackElo "2214"]
[Annotator "ChessBase"]
[PlyCount "75"]
[EventDate "2018.08.01"]
[EventType "swiss"]
[EventCountry "RUS"]
[SourceTitle "playchess.com"]
[Source "ChessBase"]
[SourceQuality "1"]
[TimeControl "5400+30"]

1. c4 {[%emt 0:00:00]} Nf6 {[%emt 0:00:00]} 2. g3 {[%emt 0:00:00]} e6 {[%emt 0:00:00]} 3. Bg2 {[%emt 0:00:00]} d5 {[%emt 0:00:09]} 4. Nf3 {[%emt 0:00:00]} dxc4 {[%emt 0:00:10]} 5. Qa4+ {[%emt 0:00:00]} Nbd7 {[%emt 0:00:00]} 6. Qxc4 {[%emt 0:00:05]} c5 {[%emt 0:00:21]} 7. O-O {[%emt 0:00:57]} a6 {[%emt 0:00:07]} 8. Qc2 {[%emt 0:07:35]} b5 {[%emt 0:02:21]} 9. a4 {[%emt 0:07:02]} Bb7 {[%emt 0:00:27]} 10. Nc3 {[%emt 0:02:11]} b4 {[%emt 0:04:21]} 11. Nb1 {[%emt 0:00:27]} Rc8 {[%emt 0:07:40]} 12. d3 {[%emt 0:00:53]} Be7 {[%emt 0:02:45]} 13. Nbd2 {[%emt 0:01:53]} O-O {[%emt 0:01:11]} 14. a5 {[%emt 0:05:25]} Qc7 {[%emt 0:02:00]} 15. Nc4 {[%emt 0:03:44]} e5 {[%emt 0:00:58]} 16. e4 {[%emt 0:06:24]} Rfe8 {[%emt 0:01:39]} 17. b3 {[%emt 0:01:39]} Bd6 {[%emt 0:02:06]} 18. Bb2 {[%emt 0:06:13]} Rcd8 {[%emt 0:02:47]} 19. Nh4 {[%emt 0:05:14]} Bc8 {[%emt 0:07:14]} 20. f4 {[%emt 0:03:49]} exf4 {[%emt 0:02:36]} 21. Nxd6 {[%emt 0:00:23]} Qxd6 {[%emt 0:00:06]} 22. Nf5 {[%emt 0:00:27]} Qf8 {[%emt 0:00:51]} 23. gxf4 {[%emt 0:00:26]} Nh5 {[%emt 0:04:43]} 24. e5 {[%emt 0:08:09]} Re6 {[%emt 0:03:36]} 25. Qd1 {[%emt 0:04:36]} g6 {[%emt 0:01:57]} 26. Nd6 {[%emt 0:01:06]} Re7 {[%emt 0:01:01]} 27. Rc1 {[%emt 0:05:41]} Ng7 {[%emt 0:08:36]} 28. d4 {[%emt 0:00:28]} cxd4 {[%emt 0:09:47]} 29. Qxd4 {[%emt 0:00:43]} Nb8 {[%emt 0:01:26]} 30. Qxb4 {[%emt 0:07:15]} Be6 {[%emt 0:01:25]} 31. Ba3 {[%emt 0:02:21]} Ra7 {[%emt 0:09:48]} 32. Qb6 {[%emt 0:01:51]} Rad7 {[%emt 0:00:25]} 33. Nb7 {[%emt 0:03:15]} Rxb7 {[%emt 0:02:14]} 34. Bxb7 {[%emt 0:00:09]} Qe8 {[%emt 0:00:00]} 35. Rfd1 {[%emt 0:01:18]} Nd7 {[%emt 0:00:49]} 36. Qxd8 {[%emt 0:00:46]} Qxd8 {[%emt 0:01:02]} 37. Rc8 {[%emt 0:00:05]} Qxc8 {[%emt 0:00:20]} 38. Bxc8 {[%emt 0:00:04]} 1-0

[Event "Eurasia Open Cup 2018"]
[Site "Jekaterienburg"]
[Date "2018.08.10"]
[Round "9"]
[White "Dilmukhametov, Artur"]
[Black "Badmatsyrenov, Oleg"]
[Result "1/2-1/2"]
[ECO "B22"]
[WhiteElo "2354"]
[BlackElo "2454"]
[Annotator "ChessBase"]
[PlyCount "70"]
[EventDate "2018.08.01"]
[EventType "swiss"]
[EventCountry "RUS"]
[SourceTitle "playchess.com"]
[Source "ChessBase"]
[SourceQuality "1"]
[TimeControl "5400+30"]

1. e4 {[%emt 0:00:00]} c5 {[%emt 0:02:11]} 2. c3 {[%emt 0:00:00]} d5 {[%emt 0:03:40]} 3. exd5 {[%emt 0:01:06]} Qxd5 {[%emt 0:00:02]} 4. d4 {[%emt 0:00:14]} Nf6 {[%emt 0:00:02]} 5. Nf3 {[%emt 0:00:08]} Bg4 {[%emt 0:00:04]} 6. Be2 {[%emt 0:01:39]} e6 {[%emt 0:00:00]} 7. O-O {[%emt 0:00:30]} Nc6 {[%emt 0:00:10]} 8. h3 {[%emt 0:01:01]} Bh5 {[%emt 0:00:06]} 9. Be3 {[%emt 0:01:12]} cxd4 {[%emt 0:00:06]} 10. Nxd4 {[%emt 0:01:12]} O-O-O {[%emt 0:08:55]} 11. Bxh5 {[%emt 0:21:45]} Nxh5 {[%emt 0:01:08]} 12. c4 {[%emt 0:04:13]} Qc5 {[%emt 0:19:14]} 13. Nxc6 {[%emt 0:01:51]} Rxd1 {[%emt 0:09:36]} 14. Nxa7+ {[%emt 0:00:20]} Qxa7 {[%emt 0:04:32]} 15. Bxa7 {[%emt 0:00:09]} Rd3 {[%emt 0:00:33]} 16. Nc3 {[%emt 0:03:05]} Bb4 {[%emt 0:00:07]} 17. Rfd1 {[%emt 0:03:29]} Rxd1+ {[%emt 0:00:12]} 18. Nxd1 {[%emt 0:01:14]} Rd8 {[%emt 0:00:42]} 19. Be3 {[%emt 0:01:32]} f5 {[%emt 0:00:06]} 20. a3 {[%emt 0:08:30]} Ba5 {[%emt 0:01:29]} 21. b4 {[%emt 0:08:16]} Bc7 {[%emt 0:00:04]} 22. Nc3 {[%emt 0:00:00]} Be5 {[%emt 0:01:54]} 23. Rc1 {[%emt 0:02:11]} Rd3 {[%emt 0:00:55]} 24. Nb5 {[%emt 0:05:17]} Ng3 {[%emt 0:02:56]} 25. Re1 {[%emt 0:01:34]} Ne4 {[%emt 0:00:05]} 26. Kf1 {[%emt 0:03:32]} Kd7 {[%emt 0:04:51]} 27. Ke2 {[%emt 0:03:03]} Rb3 {[%emt 0:00:45]} 28. Rd1+ {[%emt 0:00:10]} Ke7 {[%emt 0:00:07]} 29. f4 {[%emt 0:03:29]} Bf6 {[%emt 0:04:02]} 30. Rd3 {[%emt 0:07:10]} Ng3+ {[%emt 0:01:40]} 31. Kd2 {[%emt 0:00:04]} Ne4+ {[%emt 0:01:08]} 32. Ke2 {[%emt 0:00:35]} Ng3+ {[%emt 0:00:22]} 33. Kd2 {[%emt 0:00:05]} Ne4+ {[%emt 0:00:54]} 34. Ke2 {[%emt 0:00:06]} Ng3+ {[%emt 0:00:54]} 35. Kd2 {[%emt 0:00:11]} Ne4+ {[%emt 0:00:42]} 1/2-1/2

[Event "Eurasia Open Cup 2018"]
[Site "Jekaterienburg"]
[Date "2018.08.10"]
[Round "9"]
[White "Pastukhov, Leonid"]
[Black "Fotin, Vladimir"]
[Result "1/2-1/2"]
[ECO "D27"]
[WhiteElo "2166"]
[BlackElo "2359"]
[Annotator "ChessBase"]
[PlyCount "79"]
[EventDate "2018.08.01"]
[EventType "swiss"]
[EventCountry "RUS"]
[SourceTitle "playchess.com"]
[Source "ChessBase"]
[SourceQuality "1"]
[TimeControl "5400+30"]

1. d4 {[%emt 0:00:00]} d5 {[%emt 0:01:27]} 2. c4 {[%emt 0:00:00]} dxc4 {[%emt 0:00:09]} 3. e3 {[%emt 0:00:30]} e6 {[%emt 0:00:36]} 4. Bxc4 {[%emt 0:00:00]} Nf6 {[%emt 0:00:09]} 5. Nf3 {[%emt 0:00:37]} a6 {[%emt 0:00:05]} 6. O-O {[%emt 0:01:06]} c5 {[%emt 0:00:12]} 7. dxc5 {[%emt 0:04:21]} Bxc5 {[%emt 0:00:17]} 8. Qxd8+ {[%emt 0:00:36]} Kxd8 {[%emt 0:00:06]} 9. a3 {[%emt 0:00:51]} Ke7 {[%emt 0:00:22]} 10. b4 {[%emt 0:00:37]} Bd6 {[%emt 0:00:10]} 11. Bb2 {[%emt 0:00:30]} b5 {[%emt 0:00:28]} 12. Bb3 {[%emt 0:00:13]} Bb7 {[%emt 0:00:17]} 13. Nbd2 {[%emt 0:00:13]} Nbd7 {[%emt 0:00:18]} 14. Rfe1 {[%emt 0:00:13]} h6 {[%emt 0:08:59]} 15. e4 {[%emt 0:02:03]} e5 {[%emt 0:00:15]} 16. Nh4 {[%emt 0:03:14]} g6 {[%emt 0:00:55]} 17. Rad1 {[%emt 0:02:08]} a5 {[%emt 0:01:55]} 18. f4 {[%emt 0:01:04]} axb4 {[%emt 0:06:11]} 19. axb4 {[%emt 0:00:08]} Rhd8 {[%emt 0:00:32]} 20. h3 {[%emt 0:04:58]} Nh5 {[%emt 0:00:49]} 21. fxe5 {[%emt 0:05:03]} Bxe5 {[%emt 0:00:17]} 22. Bxe5 {[%emt 0:01:34]} Nxe5 {[%emt 0:00:08]} 23. Bd5 {[%emt 0:00:53]} Bxd5 {[%emt 0:03:24]} 24. exd5 {[%emt 0:00:08]} Rxd5 {[%emt 0:00:05]} 25. Nhf3 {[%emt 0:00:35]} f6 {[%emt 0:00:34]} 26. Nxe5 {[%emt 0:00:25]} fxe5 {[%emt 0:02:52]} 27. Nf3 {[%emt 0:00:41]} Rxd1 {[%emt 0:00:00]} 28. Rxd1 {[%emt 0:00:13]} Nf4 {[%emt 0:02:46]} 29. Re1 {[%emt 0:08:06]} Ra2 {[%emt 0:00:44]} 30. Rxe5+ {[%emt 0:00:13]} Kf6 {[%emt 0:00:38]} 31. Rxb5 {[%emt 0:00:17]} Rxg2+ {[%emt 0:00:07]} 32. Kf1 {[%emt 0:00:11]} Rg3 {[%emt 0:00:15]} 33. Kf2 {[%emt 0:05:46]} Rxh3 {[%emt 0:00:09]} 34. Rb8 {[%emt 0:00:41]} g5 {[%emt 0:01:49]} 35. b5 {[%emt 0:03:24]} Ne6 {[%emt 0:03:35]} 36. b6 {[%emt 0:03:02]} g4 {[%emt 0:00:24]} 37. Nd2 {[%emt 0:02:30]} Rd3 {[%emt 0:08:26]} 38. Ne4+ {[%emt 0:01:01]} Ke5 {[%emt 0:03:02]} 39. b7 {[%emt 0:02:21]} g3+ {[%emt 0:02:41]} 40. Nxg3 {[%emt 0:02:37]} 1/2-1/2